{"text_format":"3","workbook":"xlsx","n_sheets":6,"sheets":["Start","Instrumentpanel","Utgifter och inkomster","Budgetrapport","Datalistor","Pivottabell för kategori"],"not_rendered":{"charts":3,"defined_names":23,"pivot_tables":2},"read":"whole","date_system":"1900"}

{"sheet":"Start","index":0,"n_rows":8,"n_cols":2,"rows_kept":8}
[null,"Om den här mallen"]
[null,"Använd den här mallen för att skapa en delmånadsbudget för hushållet."]
[null,"Instrumentpanelens kalkylblad innehåller diagram för månads- och årssummor och en tabell som visar inkomster och utgifter under en tvåveckorsperiod."]
[null,"Ange kategorier i kalkylbladet för datalistor och värden i kalkylbladet för intäkter och utgifter."]
[null,"Uppdatera pivottabellen i kalkylbladet för budgetrapport."]
[null,"Obs:"]
[null,"Ytterligare anvisningar finns i kolumn A i alla kalkylblad. Den här texten har avsiktligt dolts. För att ta bort texten markerar du kolumn A och väljer sen TA BORT. "]
[null,"För mer information tabeller trycker du på SKIFT och sen på F10 i en tabell. Välj alternativet TABELL och sen ALTERNATIVTEXT. För pivottabeller trycker du på SKIFT och sen på F10 i en tabell. Välj PIVOTTABELLALTERNATIV och sen fliken ALTERNATIVTEXT."]

{"sheet":"Instrumentpanel","index":1,"n_rows":12,"n_cols":15,"rows_kept":12,"merged":[[0,1,0,13],[1,2,1,7]]}
["Skapa en instrumentpanel för månads- och årssummor och för intäkter och utgifter under en tvåveckorsperiod, i det här kalkylbladet. Instruktioner om hur du använder kalkylbladet finns i cellerna i den här kolumnen. Namnet på arbetsboken står i cellen till höger och namnet på kalkylbladet i cell O1.","Delmånadsbudget för hushåll",{"$nulls":12},"INSTRUMENTPANEL"]
["Markera skjutreglaget i cell C2 för att ändra månad i cellen till höger och ändra året i cell I2 genom att markera skjutreglaget i cell J2.",{"$f":"CHOOSE(Månadsnummer,\"JANUARI\",\"FEBRUARI\",\"MARS\",\"APRIL\",\"MAJ\",\"JUNI\",\"JULI\",\"AUGUSTI\",\"SEPTEMBER\",\"OKTOBER\",\"NOVEMBER\",\"DECEMBER\")","v":"DECEMBER"},12,{"$nulls":5},{"$f":"YEAR(TODAY())","v":2022}]
["Etiketten Månadssummor finns i cellen till höger och etiketten Årssummor i cell I3.","TOTAL MÅNADSSUMMA",{"$nulls":6},"TOTAL ÅRSSUMMA"]
["Stapeldiagram som jämför totala månadsintäkter med totala månadskostnader finns i cell C4 och stapeldiagram som jämför total årlig inkomst med totala årliga utgifter finns i cell J4. Fler anvisningar finns i cell A8.","INTÄKTER",null,{"$f":"MånadsutgifterTotalt","v":{"v":0,"d":"0 kr"}},{"$nulls":4},"INTÄKTER",null,null,{"$f":"ÅrsutgifterTotalt","v":{"v":10742,"d":"10,742 kr"}}]
[null,"UTGIFTER",null,{"$f":"MånadsinkomsterTotalt","v":{"v":0,"d":"0 kr"}},{"$nulls":4},"UTGIFTER",null,null,{"$f":"ÅrsinkomsterTotalt","v":{"v":13200,"d":"13,200 kr"}}]
[]
[]
["Instrumentpanelstabell som startar i cellen till höger uppdateras automatiskt.","Kategori","JANUARI","FEBRUARI","MARS","APRIL","MAJ","JUNI","JULI","AUGUSTI","SEPTEMBER","OKTOBER","NOVEMBER","DECEMBER","Miniatyrdiagram"]
[null,"Intäkt 1-15",{"$f":"SUMIFS(Inkomster[BELOPP],Inkomster[DATUM],\"<=\"&DtMitten,Inkomster[DATUM],\">=\"&DtStart)","v":{"v":0,"d":"0.00 kr"}},{"$f":"SUMIFS(Inkomster[BELOPP],Inkomster[DATUM],\"<=\"&DtMitten,Inkomster[DATUM],\">=\"&DtStart)","v":{"v":0,"d":"0.00 kr"}},{"$f":"SUMIFS(Inkomster[BELOPP],Inkomster[DATUM],\"<=\"&DtMitten,Inkomster[DATUM],\">=\"&DtStart)","v":{"v":1300,"d":"1,300.00 kr"}},{"$f":"SUMIFS(Inkomster[BELOPP],Inkomster[DATUM],\"<=\"&DtMitten,Inkomster[DATUM],\">=\"&DtStart)","v":{"v":3100,"d":"3,100.00 kr"}},{"$f":"SUMIFS(Inkomster[BELOPP],Inkomster[DATUM],\"<=\"&DtMitten,Inkomster[DATUM],\">=\"&DtStart)","v":{"v":500,"d":"500.00 kr"}},{"$f":"SUMIFS(Inkomster[BELOPP],Inkomster[DATUM],\"<=\"&DtMitten,Inkomster[DATUM],\">=\"&DtStart)","v":{"v":0,"d":"0.00 kr"}},{"$f":"SUMIFS(Inkomster[BELOPP],Inkomster[DATUM],\"<=\"&DtMitten,Inkomster[DATUM],\">=\"&DtStart)","v":{"v":0,"d":"0.00 kr"}},{"$f":"SUMIFS(Inkomster[BELOPP],Inkomster[DATUM],\"<=\"&DtMitten,Inkomster[DATUM],\">=\"&DtStart)","v":{"v":0,"d":"0.00 kr"}},{"$f":"SUMIFS(Inkomster[BELOPP],Inkomster[DATUM],\"<=\"&DtMitten,Inkomster[DATUM],\">=\"&DtStart)","v":{"v":0,"d":"0.00 kr"}},{"$f":"SUMIFS(Inkomster[BELOPP],Inkomster[DATUM],\"<=\"&DtMitten,Inkomster[DATUM],\">=\"&DtStart)","v":{"v":0,"d":"0.00 kr"}},{"$f":"SUMIFS(Inkomster[BELOPP],Inkomster[DATUM],\"<=\"&DtMitten,Inkomster[DATUM],\">=\"&DtStart)","v":{"v":0,"d":"0.00 kr"}},{"$f":"SUMIFS(Inkomster[BELOPP],Inkomster[DATUM],\"<=\"&DtMitten,Inkomster[DATUM],\">=\"&DtStart)","v":{"v":0,"d":"0.00 kr"}}]
[null,"Intäkt 16-EOM",{"$f":"SUMIFS(Inkomster[BELOPP],Inkomster[DATUM],\"<=\"&DtSlut,Inkomster[DATUM],\">=\"&DtMitten+1)","v":{"v":0,"d":"0.00 kr"}},{"$f":"SUMIFS(Inkomster[BELOPP],Inkomster[DATUM],\"<=\"&DtSlut,Inkomster[DATUM],\">=\"&DtMitten+1)","v":{"v":0,"d":"0.00 kr"}},{"$f":"SUMIFS(Inkomster[BELOPP],Inkomster[DATUM],\"<=\"&DtSlut,Inkomster[DATUM],\">=\"&DtMitten+1)","v":{"v":5700,"d":"5,700.00 kr"}},{"$f":"SUMIFS(Inkomster[BELOPP],Inkomster[DATUM],\"<=\"&DtSlut,Inkomster[DATUM],\">=\"&DtMitten+1)","v":{"v":2600,"d":"2,600.00 kr"}},{"$f":"SUMIFS(Inkomster[BELOPP],Inkomster[DATUM],\"<=\"&DtSlut,Inkomster[DATUM],\">=\"&DtMitten+1)","v":{"v":0,"d":"0.00 kr"}},{"$f":"SUMIFS(Inkomster[BELOPP],Inkomster[DATUM],\"<=\"&DtSlut,Inkomster[DATUM],\">=\"&DtMitten+1)","v":{"v":0,"d":"0.00 kr"}},{"$f":"SUMIFS(Inkomster[BELOPP],Inkomster[DATUM],\"<=\"&DtSlut,Inkomster[DATUM],\">=\"&DtMitten+1)","v":{"v":0,"d":"0.00 kr"}},{"$f":"SUMIFS(Inkomster[BELOPP],Inkomster[DATUM],\"<=\"&DtSlut,Inkomster[DATUM],\">=\"&DtMitten+1)","v":{"v":0,"d":"0.00 kr"}},{"$f":"SUMIFS(Inkomster[BELOPP],Inkomster[DATUM],\"<=\"&DtSlut,Inkomster[DATUM],\">=\"&DtMitten+1)","v":{"v":0,"d":"0.00 kr"}},{"$f":"SUMIFS(Inkomster[BELOPP],Inkomster[DATUM],\"<=\"&DtSlut,Inkomster[DATUM],\">=\"&DtMitten+1)","v":{"v":0,"d":"0.00 kr"}},{"$f":"SUMIFS(Inkomster[BELOPP],Inkomster[DATUM],\"<=\"&DtSlut,Inkomster[DATUM],\">=\"&DtMitten+1)","v":{"v":0,"d":"0.00 kr"}},{"$f":"SUMIFS(Inkomster[BELOPP],Inkomster[DATUM],\"<=\"&DtSlut,Inkomster[DATUM],\">=\"&DtMitten+1)","v":{"v":0,"d":"0.00 kr"}}]
[null,"Utgifter 1-15",{"$f":"SUMIFS(Utgifter[BELOPP],Utgifter[DATUM],\"<=\"&DtMitten+1,Utgifter[DATUM],\">=\"&DtStart)","v":{"v":0,"d":"0.00 kr"}},{"$f":"SUMIFS(Utgifter[BELOPP],Utgifter[DATUM],\"<=\"&DtMitten+1,Utgifter[DATUM],\">=\"&DtStart)","v":{"v":0,"d":"0.00 kr"}},{"$f":"SUMIFS(Utgifter[BELOPP],Utgifter[DATUM],\"<=\"&DtMitten+1,Utgifter[DATUM],\">=\"&DtStart)","v":{"v":150,"d":"150.00 kr"}},{"$f":"SUMIFS(Utgifter[BELOPP],Utgifter[DATUM],\"<=\"&DtMitten+1,Utgifter[DATUM],\">=\"&DtStart)","v":{"v":75,"d":"75.00 kr"}},{"$f":"SUMIFS(Utgifter[BELOPP],Utgifter[DATUM],\"<=\"&DtMitten+1,Utgifter[DATUM],\">=\"&DtStart)","v":{"v":2492,"d":"2,492.00 kr"}},{"$f":"SUMIFS(Utgifter[BELOPP],Utgifter[DATUM],\"<=\"&DtMitten+1,Utgifter[DATUM],\">=\"&DtStart)","v":{"v":0,"d":"0.00 kr"}},{"$f":"SUMIFS(Utgifter[BELOPP],Utgifter[DATUM],\"<=\"&DtMitten+1,Utgifter[DATUM],\">=\"&DtStart)","v":{"v":0,"d":"0.00 kr"}},{"$f":"SUMIFS(Utgifter[BELOPP],Utgifter[DATUM],\"<=\"&DtMitten+1,Utgifter[DATUM],\">=\"&DtStart)","v":{"v":0,"d":"0.00 kr"}},{"$f":"SUMIFS(Utgifter[BELOPP],Utgifter[DATUM],\"<=\"&DtMitten+1,Utgifter[DATUM],\">=\"&DtStart)","v":{"v":0,"d":"0.00 kr"}},{"$f":"SUMIFS(Utgifter[BELOPP],Utgifter[DATUM],\"<=\"&DtMitten+1,Utgifter[DATUM],\">=\"&DtStart)","v":{"v":0,"d":"0.00 kr"}},{"$f":"SUMIFS(Utgifter[BELOPP],Utgifter[DATUM],\"<=\"&DtMitten+1,Utgifter[DATUM],\">=\"&DtStart)","v":{"v":0,"d":"0.00 kr"}},{"$f":"SUMIFS(Utgifter[BELOPP],Utgifter[DATUM],\"<=\"&DtMitten+1,Utgifter[DATUM],\">=\"&DtStart)","v":{"v":0,"d":"0.00 kr"}}]
[null,"Utgifter 16-EOM",{"$f":"SUMIFS(Utgifter[BELOPP],Utgifter[DATUM],\"<=\"&DtSlut,Utgifter[DATUM],\">=\"&DtMitten+1)","v":{"v":0,"d":"0.00 kr"}},{"$f":"SUMIFS(Utgifter[BELOPP],Utgifter[DATUM],\"<=\"&DtSlut,Utgifter[DATUM],\">=\"&DtMitten+1)","v":{"v":1075,"d":"1,075.00 kr"}},{"$f":"SUMIFS(Utgifter[BELOPP],Utgifter[DATUM],\"<=\"&DtSlut,Utgifter[DATUM],\">=\"&DtMitten+1)","v":{"v":5350,"d":"5,350.00 kr"}},{"$f":"SUMIFS(Utgifter[BELOPP],Utgifter[DATUM],\"<=\"&DtSlut,Utgifter[DATUM],\">=\"&DtMitten+1)","v":{"v":1600,"d":"1,600.00 kr"}},{"$f":"SUMIFS(Utgifter[BELOPP],Utgifter[DATUM],\"<=\"&DtSlut,Utgifter[DATUM],\">=\"&DtMitten+1)","v":{"v":0,"d":"0.00 kr"}},{"$f":"SUMIFS(Utgifter[BELOPP],Utgifter[DATUM],\"<=\"&DtSlut,Utgifter[DATUM],\">=\"&DtMitten+1)","v":{"v":0,"d":"0.00 kr"}},{"$f":"SUMIFS(Utgifter[BELOPP],Utgifter[DATUM],\"<=\"&DtSlut,Utgifter[DATUM],\">=\"&DtMitten+1)","v":{"v":0,"d":"0.00 kr"}},{"$f":"SUMIFS(Utgifter[BELOPP],Utgifter[DATUM],\"<=\"&DtSlut,Utgifter[DATUM],\">=\"&DtMitten+1)","v":{"v":0,"d":"0.00 kr"}},{"$f":"SUMIFS(Utgifter[BELOPP],Utgifter[DATUM],\"<=\"&DtSlut,Utgifter[DATUM],\">=\"&DtMitten+1)","v":{"v":0,"d":"0.00 kr"}},{"$f":"SUMIFS(Utgifter[BELOPP],Utgifter[DATUM],\"<=\"&DtSlut,Utgifter[DATUM],\">=\"&DtMitten+1)","v":{"v":0,"d":"0.00 kr"}},{"$f":"SUMIFS(Utgifter[BELOPP],Utgifter[DATUM],\"<=\"&DtSlut,Utgifter[DATUM],\">=\"&DtMitten+1)","v":{"v":0,"d":"0.00 kr"}},{"$f":"SUMIFS(Utgifter[BELOPP],Utgifter[DATUM],\"<=\"&DtSlut,Utgifter[DATUM],\">=\"&DtMitten+1)","v":{"v":0,"d":"0.00 kr"}}]

{"sheet":"Utgifter och inkomster","index":2,"n_rows":36,"n_cols":9,"rows_kept":36,"merged":[[0,1,0,6],[0,7,0,8]]}
["Skapa en lista över intäkter och utgifter i kalkylbladet. Instruktioner om hur du använder kalkylbladet finns i cellerna i den här kolumnen. Namnet på arbetsboken står i cellen till höger och namnet på kalkylbladet i cell H1.",{"$f":"Semi_Monthly_Home_Budget_Title","v":"Delmånadsbudget för hushåll"},{"$nulls":5},"INTÄKTER OCH UTGIFTER"]
["Etiketten Intäkter finns i cellen till höger och etiketten Utgifter i cell F2.","INTÄKTER",{"$nulls":3},"UTGIFTER"]
["Ange uppgifter i tabellen Intäkter som börjar i cellen till höger och i tabellen Utgifter som börjar i cell F3.","DATUM","BESKRIVNING","BELOPP",null,"DATUM","KATEGORI","BESKRIVNING","BELOPP"]
[null,{"$f":"TODAY()","v":"2022-05-12"},"Bonus",{"v":500,"d":"500.00 kr"},null,{"$f":"TODAY()","v":"2022-05-12"},"Sjukvård","Försäkring",{"v":500,"d":"500.00 kr"}]
[null,{"$f":"TODAY()-14","v":"2022-04-28"},"Davids lön",{"v":1300,"d":"1,300.00 kr"},null,{"$f":"TODAY()-7","v":"2022-05-05"},"Hushåll","Amortering",{"v":1000,"d":"1,000.00 kr"}]
[null,{"$f":"TODAY()-14","v":"2022-04-28"},"Ruths lön",{"v":1300,"d":"1,300.00 kr"},null,"2022-05-05","Hushåll","Elektricitet",{"v":100,"d":"100.00 kr"}]
[null,{"$f":"TODAY()-28","v":"2022-04-14"},"Davids lön",{"v":1500,"d":"1,500.00 kr"},null,"2022-05-05","Hushåll","Vatten och avlopp",{"v":50,"d":"50.00 kr"}]
[null,{"$f":"TODAY()-28","v":"2022-04-14"},"Ruths lön",{"v":1600,"d":"1,600.00 kr"},null,"2022-05-05","Hushåll","Sophantering",{"v":25,"d":"25.00 kr"}]
[null,{"$f":"TODAY()-42","v":"2022-03-31"},"Davids lön",{"v":1300,"d":"1,300.00 kr"},null,"2022-05-05","Hushåll","Mobiltelefon",{"v":100,"d":"100.00 kr"}]
[null,{"$f":"TODAY()-42","v":"2022-03-31"},"Ruths lön",{"v":1300,"d":"1,300.00 kr"},null,"2022-05-05","Hushåll","Mobiltelefon",{"v":30,"d":"30.00 kr"}]
[null,{"$f":"TODAY()-56","v":"2022-03-17"},"Davids lön",{"v":1500,"d":"1,500.00 kr"},null,"2022-05-05","Hushåll","Amortering",{"v":50,"d":"50.00 kr"}]
[null,{"$f":"TODAY()-56","v":"2022-03-17"},"Ruths lön",{"v":1600,"d":"1,600.00 kr"},null,"2022-05-05","Hushåll","Mobiltelefon",{"v":50,"d":"50.00 kr"}]
[null,{"$f":"TODAY()-70","v":"2022-03-03"},"Davids lön",{"v":1300,"d":"1,300.00 kr"},null,{"$f":"TODAY()-7","v":"2022-05-05"},"Hushåll","Mobiltelefon",{"v":25,"d":"25.00 kr"}]
[{"$nulls":5},{"$f":"TODAY()-8","v":"2022-05-04"},"Hushåll","Elektricitet",{"v":100,"d":"100.00 kr"}]
[{"$nulls":5},{"$f":"TODAY()-9","v":"2022-05-03"},"Underhållning","Bio",{"v":37,"d":"37.00 kr"}]
[{"$nulls":5},{"$f":"TODAY()-10","v":"2022-05-02"},"Mat","Matvaror",{"v":350,"d":"350.00 kr"}]
[{"$nulls":5},{"$f":"TODAY()-11","v":"2022-05-01"},"Mat","Restaurangbesök",{"v":75,"d":"75.00 kr"}]
[{"$nulls":5},{"$f":"TODAY()-12","v":"2022-04-30"},"Barn","Lunchpengar",{"v":150,"d":"150.00 kr"}]
[{"$nulls":5},{"$f":"TODAY()-13","v":"2022-04-29"},"Investeringskonton","Sparande",{"v":250,"d":"250.00 kr"}]
[{"$nulls":5},{"$f":"TODAY()-14","v":"2022-04-28"},"Investeringskonton","Investeringskonto",{"v":250,"d":"250.00 kr"}]
[{"$nulls":5},{"$f":"TODAY()-15","v":"2022-04-27"},"Privat","Hälsa och träning",{"v":100,"d":"100.00 kr"}]
[{"$nulls":5},{"$f":"TODAY()-16","v":"2022-04-26"},"Husdjur","Mat",{"v":50,"d":"50.00 kr"}]
[{"$nulls":5},{"$f":"TODAY()-20","v":"2022-04-22"},"Husdjur","Skönhetsvård",{"v":50,"d":"50.00 kr"}]
[{"$nulls":5},{"$f":"TODAY()-20","v":"2022-04-22"},"Husdjur","Övrigt",{"v":50,"d":"50.00 kr"}]
[{"$nulls":5},{"$f":"TODAY()-25","v":"2022-04-17"},"Transport","Betalning för bil 1 ",{"v":300,"d":"300.00 kr"}]
[{"$nulls":5},{"$f":"TODAY()-25","v":"2022-04-17"},"Transport","Betalning för bil 2 ",{"v":350,"d":"350.00 kr"}]
[{"$nulls":5},{"$f":"TODAY()-25","v":"2022-04-17"},"Transport","Bilförsäkring",{"v":50,"d":"50.00 kr"}]
[{"$nulls":5},{"$f":"TODAY()-30","v":"2022-04-12"},"Transport","Bränsle",{"v":50,"d":"50.00 kr"}]
[{"$nulls":5},{"$f":"TODAY()-31","v":"2022-04-11"},"Transport","Bränsle",{"v":25,"d":"25.00 kr"}]
[{"$nulls":5},{"$f":"TODAY()-42","v":"2022-03-31"},"Transport","Betalning för bil 2 ",{"v":150,"d":"150.00 kr"}]
[{"$nulls":5},{"$f":"TODAY()-45","v":"2022-03-28"},"Hushåll","Amortering",{"v":5000,"d":"5,000.00 kr"}]
[{"$nulls":5},{"$f":"TODAY()-50","v":"2022-03-23"},"Hushåll","Elektricitet",{"v":200,"d":"200.00 kr"}]
[{"$nulls":5},{"$f":"TODAY()-65","v":"2022-03-08"},"Hushåll","Mobiltelefon",{"v":100,"d":"100.00 kr"}]
[{"$nulls":5},{"$f":"TODAY()-70","v":"2022-03-03"},"Hushåll","Sophantering",{"v":50,"d":"50.00 kr"}]
[{"$nulls":5},{"$f":"TODAY()-75","v":"2022-02-26"},"Hushåll","Amortering",{"v":1000,"d":"1,000.00 kr"}]
[{"$nulls":5},{"$f":"TODAY()-78","v":"2022-02-23"},"Underhållning","Bio",{"v":75,"d":"75.00 kr"}]

{"sheet":"Budgetrapport","index":3,"n_rows":26,"n_cols":6,"rows_kept":26,"merged":[[0,1,0,4],[1,1,1,3]]}
["Skapa en budgetrapport i det här kalkylbladet. Instruktioner om hur du använder kalkylbladet finns i cellerna i den här kolumnen. Namnet på arbetsboken står i cellen till höger och namnet på kalkylbladet i cell F1.",{"$f":"Semi_Monthly_Home_Budget_Title","v":"Delmånadsbudget för hushåll"},{"$nulls":3},"BUDGETRAPPORT"]
["Välj år, kvartal, månader eller dagar och använd skjutreglaget i cellen till höger för att få fram pivottabellen för utgifter för den valda perioden. Kategoriutsnitt för att filtrera pivottabelldata finns i cell E2 och beskrivningsutsnitt i cell F2.","Tidslinje som du kan filtrera med finns i den här cellen.",null,null,"Utsnitt för att filtrera pivottabelldata baserat på kategori finns i den här cellen.","Utsnitt för att filtrera pivottabelldata baserat på beskrivningar finns i den här cellen."]
["Tips finns i cellen till höger.","Tryck Skift+F10 i pivottabellen för utgifter och välj sen Uppdatera för att uppdatera data i det här bladet eller välj Uppdatera under fliken Analysera."]
["Etiketten Utgifter finns i cellen till höger.","UTGIFTER"]
["Pivottabellen som visar utgifter startar i cellen till höger. Etiketten Totala kategorisummor finns i cell D4.","Radetiketter","Totalt BELOPP",null,"TOTALA KATEGORISUMMOR"]
["Cirkeldiagram som jämför varje kategorisumma finns i cell D6.","Amortering",{"v":7050,"d":"7,050.00 kr"}]
[null,"Betalning för bil 1 ",{"v":300,"d":"300.00 kr"}]
[null,"Betalning för bil 2 ",{"v":500,"d":"500.00 kr"}]
[null,"Bilförsäkring",{"v":50,"d":"50.00 kr"}]
[null,"Bio",{"v":112,"d":"112.00 kr"}]
[null,"Bränsle",{"v":75,"d":"75.00 kr"}]
[null,"Elektricitet",{"v":400,"d":"400.00 kr"}]
[null,"Försäkring",{"v":500,"d":"500.00 kr"}]
[null,"Hälsa och träning",{"v":100,"d":"100.00 kr"}]
[null,"Investeringskonto",{"v":250,"d":"250.00 kr"}]
[null,"Lunchpengar",{"v":150,"d":"150.00 kr"}]
[null,"Mat",{"v":50,"d":"50.00 kr"}]
[null,"Matvaror",{"v":350,"d":"350.00 kr"}]
[null,"Mobiltelefon",{"v":305,"d":"305.00 kr"}]
[null,"Restaurangbesök",{"v":75,"d":"75.00 kr"}]
[null,"Skönhetsvård",{"v":50,"d":"50.00 kr"}]
[null,"Sophantering",{"v":75,"d":"75.00 kr"}]
[null,"Sparande",{"v":250,"d":"250.00 kr"}]
[null,"Vatten och avlopp",{"v":50,"d":"50.00 kr"}]
[null,"Övrigt",{"v":50,"d":"50.00 kr"}]
[null,"Totalsumma",{"v":10742,"d":"10,742.00 kr"}]

{"sheet":"Datalistor","index":4,"n_rows":8,"n_cols":13,"rows_kept":8,"merged":[[0,1,0,11]]}
["Ange kategoridata i det här kalkylbladet för att kunna fylla i listrutan i tabellen för utgifter i kalkylbladet Utgifter och Intäkter. Ändra kategorinamn eller beskrivningar under varje kategori för att uppdatera listorna. Instruktioner om hur du använder kalkylbladet finns i cellerna i den här kolumnen. Namnet på arbetsboken står i cellen till höger och namnet på kalkylbladet i cell M1.",{"$f":"Semi_Monthly_Home_Budget_Title","v":"Delmånadsbudget för hushåll"},{"$nulls":10},"DATALISTOR"]
["Tips finns i cellen till höger.","KONFIGURATION         Kategoridatan nedan fyller i listrutan i tabellen Utgifter i bladet för Utgifter och Intäkter. Ändra kategorinamnen eller beskrivningarna under varje kategori för att uppdatera listorna."]
["Ange eller ändra kategorinamn eller beskrivningar under varje kategori i tabellen med start i cellen till höger.","Hushåll","Underhållning","Mat","Gåvor/donationer","Barn","Investeringskonton","Sjukvård","Övrigt","Privat","Husdjur","Skatter","Transport"]
[null,"Amortering","Bio","Matvaror","Välgörenhet 1","Kläder","IRA","Läkare/klinik","Övrigt","Kläder","Mat","Statlig","Betalning för bil 1 "]
[null,"Elektricitet","Filmer/Bio","Restaurangbesök","Välgörenhet 2","Leksaker/Spel","Sparande","Försäkring","Organisationsavgifter","Hår/naglar","Material","Landsting","Betalning för bil 2 "]
[null,"Vatten och avlopp","Musik",null,"Välgörenhet 3","Lunchpengar","Checkkonto",null,null,"Kemtvätt","Sjukvård","Kommunal","Bilförsäkring"]
[null,"Sophantering","Konserter/Teater",null,"Gåva","Medlemsavgifter/Avgifter","Pension",null,null,"Hälsa och träning","Skönhetsvård","Övrigt","Licensavgift/registreringsavgift"]
[null,"Mobiltelefon","Sportevenemang",null,null,"Skolmaterial","Investeringskonto",null,null,"Shopping","Övrigt","Advokat","Bränsle"]

{"sheet":"Pivottabell för kategori","index":5,"n_rows":13,"n_cols":13,"rows_kept":13,"hidden":true}
[null,"Delmånadsbudget för hushåll",{"$nulls":10},"KATEGORIPIVOT"]
[null,"Den här pivottabellen är datakällan för pivotdiagrammet kategorisummor i budgetrapporten. "]
[null,"Radetiketter","Totalt BELOPP"]
[null,"Barn",{"v":150,"d":"150 kr"}]
[null,"Husdjur",{"v":150,"d":"150 kr"}]
[null,"Hushåll",{"v":7880,"d":"7,880 kr"}]
[null,"Investeringskonton",{"v":500,"d":"500 kr"}]
[null,"Mat",{"v":425,"d":"425 kr"}]
[null,"Privat",{"v":100,"d":"100 kr"}]
[null,"Sjukvård",{"v":500,"d":"500 kr"}]
[null,"Transport",{"v":925,"d":"925 kr"}]
[null,"Underhållning",{"v":112,"d":"112 kr"}]
[null,"Totalsumma",{"v":10742,"d":"10,742 kr"}]